[Event "*** Titled Tuesday 3|2 Blitz"]
[Site "Chess.com"]
[Date "2015.11.03"]
[Round "5"]
[White "Lupul_Cenusiu"]
[Black "StoreySniper"]
[Result "1-0"]
[WhiteElo "2407"]
[BlackElo "2167"]
[TimeControl "180+2"]
[EndTime "12:01:35 PST"]
[Termination "Lupul_Cenusiu won on time"]

1. d4 {[%clk 0:03:01.9]} 1... g6 {[%clk 0:03:00.9]} 2. e4 {[%clk 0:03:02.4]}
2... Bg7 {[%clk 0:03:02.3]} 3. Nc3 {[%clk 0:03:03.9]} 3... c5 {[%clk 0:03:03.6]}
4. d5 {[%clk 0:03:04.5]} 4... d6 {[%clk 0:03:02.5]} 5. Be3 {[%clk 0:03:03.3]}
5... Qa5 {[%clk 0:02:47.6]} 6. Qd2 {[%clk 0:02:59.2]} 6... a6 {[%clk 0:02:47.2]}
7. Nf3 {[%clk 0:02:53.6]} 7... b5 {[%clk 0:02:41.3]} 8. a3 {[%clk 0:02:37.4]}
8... Nd7 {[%clk 0:02:32.8]} 9. Bd3 {[%clk 0:02:33.9]} 9... b4 {[%clk 0:02:06.9]}
10. Nd1 {[%clk 0:02:33.1]} 10... Qa4 {[%clk 0:01:50.7]} 11. O-O {[%clk
0:02:13.3]} 11... bxa3 {[%clk 0:01:30]} 12. Rxa3 {[%clk 0:02:10.7]} 12... Qb4
{[%clk 0:01:30.7]} 13. c3 {[%clk 0:02:11.8]} 13... Qb6 {[%clk 0:01:23.5]} 14. h3
{[%clk 0:02:12.1]} 14... Ngf6 {[%clk 0:01:22.2]} 15. Bh6 {[%clk 0:02:08.5]}
15... O-O {[%clk 0:01:22.6]} 16. Bxg7 {[%clk 0:02:08.7]} 16... Kxg7 {[%clk
0:01:24.5]} 17. Ne3 {[%clk 0:02:08.4]} 17... Qc7 {[%clk 0:01:18.3]} 18. Rfa1
{[%clk 0:02:06.5]} 18... Nb8 {[%clk 0:01:16]} 19. Nc4 {[%clk 0:02:05.1]} 19...
Nfd7 {[%clk 0:01:16.4]} 20. Qg5 {[%clk 0:02:00.6]} 20... f6 {[%clk 0:01:15.8]}
21. Qe3 {[%clk 0:01:58.3]} 21... Ne5 {[%clk 0:01:16.6]} 22. Ncxe5 {[%clk
0:01:56.7]} 22... fxe5 {[%clk 0:01:17.7]} 23. Nd2 {[%clk 0:01:53.5]} 23... Bd7
{[%clk 0:00:29.6]} 24. Bxa6 {[%clk 0:01:36.7]} 24... Nxa6 {[%clk 0:00:29.8]} 25.
Rxa6 {[%clk 0:01:37.8]} 25... Rxa6 {[%clk 0:00:30.9]} 26. Rxa6 {[%clk
0:01:38.8]} 26... Qb7 {[%clk 0:00:32.2]} 27. Ra2 {[%clk 0:01:38.4]} 27... Ra8
{[%clk 0:00:20.8]} 28. Rxa8 {[%clk 0:01:37.8]} 28... Qxa8 {[%clk 0:00:22.7]} 29.
Qd3 {[%clk 0:01:32.6]} 29... Qa1+ {[%clk 0:00:21.9]} 30. Qb1 {[%clk 0:01:32.3]}
30... Qa6 {[%clk 0:00:22.8]} 31. c4 {[%clk 0:01:27.4]} 31... Qa5 {[%clk
0:00:22.1]} 32. Qc1 {[%clk 0:01:22.9]} 32... Ba4 {[%clk 0:00:21.6]} 33. b3
{[%clk 0:01:22.7]} 33... Bd7 {[%clk 0:00:22.4]} 34. Qb2 {[%clk 0:01:22.7]} 34...
h5 {[%clk 0:00:21.2]} 35. h4 {[%clk 0:01:19.9]} 35... Bg4 {[%clk 0:00:21.2]} 36.
f4 {[%clk 0:01:19.5]} 36... Qc7 {[%clk 0:00:07.3]} 37. Nf1 {[%clk 0:01:17.7]}
37... Kh7 {[%clk 0:00:06.3]} 38. fxe5 {[%clk 0:01:18.4]} 38... dxe5 {[%clk
0:00:07.8]} 39. Qf2 {[%clk 0:01:16.2]} 39... Kg7 {[%clk 0:00:06.9]} 40. Nh2
{[%clk 0:01:13.9]} 40... Bd1 {[%clk 0:00:07.3]} 41. Qg3 {[%clk 0:01:13.6]} 41...
Qb8 {[%clk 0:00:06.5]} 42. Nf3 {[%clk 0:01:09.6]} 42... Bxb3 {[%clk 0:00:06]}
43. Nxe5 {[%clk 0:01:10.4]} 43... Qd6 {[%clk 0:00:04.9]} 44. Qg5 {[%clk
0:01:04.8]} 44... Bc2 {[%clk 0:00:04.5]} 45. Qf4 {[%clk 0:00:49.8]} 45... Qf6
{[%clk 0:00:05.7]} 46. Qxf6+ {[%clk 0:00:50.7]} 46... exf6 {[%clk 0:00:06.7]}
47. Nd7 {[%clk 0:00:51.7]} 47... Bxe4 {[%clk 0:00:08.3]} 48. Nxc5 {[%clk
0:00:52.7]} 48... Bc2 {[%clk 0:00:09]} 49. Kf2 {[%clk 0:00:53.4]} 49... Kf7
{[%clk 0:00:10.3]} 50. Ke3 {[%clk 0:00:54.4]} 50... Ke7 {[%clk 0:00:11.8]} 51.
Kd4 {[%clk 0:00:55.1]} 51... Kd6 {[%clk 0:00:11.8]} 52. Nb7+ {[%clk 0:00:52.8]}
52... Kc7 {[%clk 0:00:12.5]} 53. Nc5 {[%clk 0:00:53.2]} 53... Kd6 {[%clk
0:00:11.8]} 54. Ne6 {[%clk 0:00:54.3]} 54... Bf5 {[%clk 0:00:10.1]} 55. c5+
{[%clk 0:00:55]} 55... Ke7 {[%clk 0:00:11.6]} 56. Nf4 {[%clk 0:00:55.7]} 56...
Bg4 {[%clk 0:00:11.7]} 57. d6+ {[%clk 0:00:53.6]} 57... Kd7 {[%clk 0:00:13]} 58.
Kd5 {[%clk 0:00:54.9]} 58... g5 {[%clk 0:00:12.9]} 59. c6+ {[%clk 0:00:56.1]}
59... Kc8 {[%clk 0:00:13.8]} 60. Ne6 {[%clk 0:00:54.4]} 1-0

[Event "*** Titled Tuesday 3|2 Blitz"]
[Site "Chess.com"]
[Date "2015.11.03"]
[Round "5"]
[White "stefanodinn"]
[Black "Makalexa"]
[Result "1-0"]
[WhiteElo "2146"]
[BlackElo "2068"]
[TimeControl "180+2"]
[EndTime "12:01:48 PST"]
[Termination "stefanodinn won by resignation"]

1. e4 {[%clk 0:03:00.5]} 1... e5 {[%clk 0:02:58.8]} 2. Nf3 {[%clk 0:02:58.6]}
2... Nc6 {[%clk 0:02:59.4]} 3. Bb5 {[%clk 0:02:58.5]} 3... Nd4 {[%clk
0:02:58.5]} 4. Nxd4 {[%clk 0:02:58.2]} 4... exd4 {[%clk 0:02:58.8]} 5. O-O
{[%clk 0:02:58.6]} 5... Bc5 {[%clk 0:02:55.8]} 6. d3 {[%clk 0:02:38.2]} 6... c6
{[%clk 0:02:54.3]} 7. Bc4 {[%clk 0:02:37.5]} 7... d5 {[%clk 0:02:55.1]} 8. exd5
{[%clk 0:02:35.8]} 8... cxd5 {[%clk 0:02:57]} 9. Bb3 {[%clk 0:02:05.7]} 9... Be6
{[%clk 0:02:53.6]} 10. Nd2 {[%clk 0:01:59.9]} 10... Qh4 {[%clk 0:02:45.9]} 11.
Nf3 {[%clk 0:01:59.8]} 11... Qg4 {[%clk 0:02:35.1]} 12. Ba4+ {[%clk 0:01:47.4]}
12... Kf8 {[%clk 0:02:34.5]} 13. b4 {[%clk 0:01:22.8]} 13... Bb6 {[%clk
0:02:21.1]} 14. Bb2 {[%clk 0:01:21.1]} 14... Ne7 {[%clk 0:02:18.4]} 15. Nxd4
{[%clk 0:01:10.8]} 15... Qg6 {[%clk 0:01:58.9]} 16. Nxe6+ {[%clk 0:01:04.3]}
16... fxe6 {[%clk 0:01:57.9]} 17. Qf3+ {[%clk 0:00:33]} 17... Qf5 {[%clk
0:01:55.7]} 18. Qxf5+ {[%clk 0:00:32.7]} 18... Nxf5 {[%clk 0:01:57.6]} 19. Rfe1
{[%clk 0:00:31]} 19... Ke7 {[%clk 0:01:36.5]} 20. c4 {[%clk 0:00:27.4]} 20...
dxc4 {[%clk 0:01:31.9]} 21. dxc4 {[%clk 0:00:28.2]} 21... Rad8 {[%clk
0:01:23.7]} 22. c5 {[%clk 0:00:26.3]} 22... Bc7 {[%clk 0:01:23.9]} 23. Bb3
{[%clk 0:00:25.2]} 23... Nd4 {[%clk 0:01:16.8]} 24. Bxd4 {[%clk 0:00:07.2]}
24... Rxd4 {[%clk 0:01:18.7]} 25. a3 {[%clk 0:00:05.2]} 25... e5 {[%clk
0:01:18.6]} 26. g3 {[%clk 0:00:03.3]} 26... Rd2 {[%clk 0:01:18.5]} 27. Kf1
{[%clk 0:00:03.2]} 27... Rf8 {[%clk 0:01:19.6]} 28. Re2 {[%clk 0:00:04]} 28...
Rd3 {[%clk 0:01:08.7]} 29. Bc2 {[%clk 0:00:04.7]} 29... Rd4 {[%clk 0:01:04]} 30.
Bxh7 {[%clk 0:00:04.7]} 30... Rh8 {[%clk 0:01:04.8]} 31. Be4 {[%clk 0:00:05.2]}
31... Rxh2 {[%clk 0:01:04.5]} 32. Bxb7 {[%clk 0:00:05.7]} 32... Kf6 {[%clk
0:00:58]} 33. Bg2 {[%clk 0:00:04.4]} 33... Kf5 {[%clk 0:00:56.7]} 34. Kg1 {[%clk
0:00:05.3]} 34... Rh8 {[%clk 0:00:55.5]} 35. Rae1 {[%clk 0:00:04.7]} 35... Rc4
{[%clk 0:00:45]} 36. Be4+ {[%clk 0:00:04.9]} 36... Kf6 {[%clk 0:00:45.4]} 37.
Kg2 {[%clk 0:00:05.6]} 37... a5 {[%clk 0:00:45.2]} 38. Rb1 {[%clk 0:00:03.9]}
38... axb4 {[%clk 0:00:45.3]} 39. axb4 {[%clk 0:00:03.1]} 39... Rb8 {[%clk
0:00:44.2]} 40. c6 {[%clk 0:00:03.9]} 40... Rbxb4 {[%clk 0:00:43.6]} 41. Rxb4
{[%clk 0:00:04.4]} 41... Rxb4 {[%clk 0:00:45.5]} 42. f3 {[%clk 0:00:04.8]} 42...
Ke7 {[%clk 0:00:35.7]} 43. Rd2 {[%clk 0:00:05.5]} 43... Rd4 {[%clk 0:00:34.2]}
44. Rb2 {[%clk 0:00:05.7]} 44... Kd6 {[%clk 0:00:32.9]} 45. Kh3 {[%clk
0:00:06.4]} 45... Rd1 {[%clk 0:00:30.8]} 46. Kg4 {[%clk 0:00:07]} 46... Rg1
{[%clk 0:00:27.8]} 47. Rd2+ {[%clk 0:00:07.5]} 47... Kc5 {[%clk 0:00:22.1]} 48.
Rd7 {[%clk 0:00:08]} 48... Kb6 {[%clk 0:00:13.9]} 49. Rxg7 {[%clk 0:00:08.7]}
49... Rd1 {[%clk 0:00:10.4]} 50. Re7 {[%clk 0:00:06.9]} 50... Rd8 {[%clk
0:00:11.6]} 51. Rg7 {[%clk 0:00:04.9]} 51... Rg8 {[%clk 0:00:13.1]} 52. Rxg8
{[%clk 0:00:05.1]} 52... Kc5 {[%clk 0:00:13.3]} 53. Rg7 {[%clk 0:00:05.9]} 1-0

[Event "*** Titled Tuesday 3|2 Blitz"]
[Site "Chess.com"]
[Date "2015.11.03"]
[Round "5"]
[White "ChadaevNikolay"]
[Black "JammyDodger91"]
[Result "1-0"]
[WhiteElo "2572"]
[BlackElo "2233"]
[TimeControl "180+2"]
[EndTime "12:02:12 PST"]
[Termination "ChadaevNikolay won by resignation"]

1. Nf3 {[%clk 0:02:57.4]} 1... Nf6 {[%clk 0:03:00.7]} 2. c4 {[%clk 0:02:58]}
2... e6 {[%clk 0:03:00]} 3. g3 {[%clk 0:02:57.4]} 3... c5 {[%clk 0:03:00.6]} 4.
Bg2 {[%clk 0:02:58.8]} 4... d5 {[%clk 0:03:02]} 5. O-O {[%clk 0:02:59.2]} 5...
Nc6 {[%clk 0:03:03.4]} 6. cxd5 {[%clk 0:03:00.1]} 6... exd5 {[%clk 0:03:05.3]}
7. d4 {[%clk 0:03:01.5]} 7... Be7 {[%clk 0:03:06.8]} 8. dxc5 {[%clk 0:03:00.5]}
8... Bxc5 {[%clk 0:03:08.7]} 9. a3 {[%clk 0:03:02]} 9... Be7 {[%clk 0:03:09.2]}
10. b4 {[%clk 0:03:03]} 10... Ne4 {[%clk 0:03:10.5]} 11. Bb2 {[%clk 0:03:04]}
11... Bf6 {[%clk 0:03:11.8]} 12. Bxf6 {[%clk 0:02:39.2]} 12... Qxf6 {[%clk
0:03:13.7]} 13. Nbd2 {[%clk 0:02:40.6]} 13... Nc3 {[%clk 0:02:57.7]} 14. Qe1
{[%clk 0:02:40.9]} 14... O-O {[%clk 0:02:58.1]} 15. Nb3 {[%clk 0:02:38.8]} 15...
d4 {[%clk 0:02:40]} 16. b5 {[%clk 0:02:37.3]} 16... Be6 {[%clk 0:02:41.2]} 17.
bxc6 {[%clk 0:02:37.4]} 17... Bxb3 {[%clk 0:02:42]} 18. cxb7 {[%clk 0:02:38.1]}
18... Rad8 {[%clk 0:02:35.6]} 19. Qd2 {[%clk 0:02:30.2]} 19... Bc4 {[%clk
0:02:34.1]} 20. Rfe1 {[%clk 0:02:30.1]} 20... Rfe8 {[%clk 0:02:34.5]} 21. Bf1
{[%clk 0:00:41.9]} 21... Ba6 {[%clk 0:02:06.1]} 22. b8=Q {[%clk 0:00:40.5]}
22... Rxb8 {[%clk 0:02:03.1]} 23. Qxd4 {[%clk 0:00:39.6]} 23... Nxe2+ {[%clk
0:01:26]} 24. Bxe2 {[%clk 0:00:38.8]} 24... Bxe2 {[%clk 0:01:27.9]} 25. Qxf6
{[%clk 0:00:38.8]} 25... gxf6 {[%clk 0:01:29.8]} 26. Nd4 {[%clk 0:00:38.6]}
26... Bd3 {[%clk 0:01:28.2]} 27. Rxe8+ {[%clk 0:00:30.9]} 27... Rxe8 {[%clk
0:01:30.1]} 28. Rd1 {[%clk 0:00:32.4]} 28... Bg6 {[%clk 0:01:24.8]} 29. Nb5
{[%clk 0:00:32.6]} 29... Bh5 {[%clk 0:01:21.6]} 30. Rc1 {[%clk 0:00:28.6]} 30...
a5 {[%clk 0:01:11]} 31. Kg2 {[%clk 0:00:29.5]} 31... Rb8 {[%clk 0:01:07.9]} 32.
Nd4 {[%clk 0:00:26.9]} 32... Rd8 {[%clk 0:01:02.1]} 33. Nf5 {[%clk 0:00:27.3]}
33... Bg6 {[%clk 0:00:58]} 34. Rc5 {[%clk 0:00:27.9]} 34... a4 {[%clk
0:00:56.5]} 35. Ne7+ {[%clk 0:00:22.3]} 35... Kg7 {[%clk 0:00:57.4]} 36. Nxg6
{[%clk 0:00:23]} 36... hxg6 {[%clk 0:00:58.6]} 37. Rc4 {[%clk 0:00:24.4]} 37...
Ra8 {[%clk 0:00:57.7]} 38. g4 {[%clk 0:00:24.4]} 38... Ra5 {[%clk 0:00:55.5]}
39. Kg3 {[%clk 0:00:25.2]} 39... Ra7 {[%clk 0:00:51]} 40. h4 {[%clk 0:00:24.9]}
40... Ra5 {[%clk 0:00:52.3]} 41. Kf4 {[%clk 0:00:25.8]} 41... f5 {[%clk
0:00:49.3]} 42. g5 {[%clk 0:00:24.4]} 42... Kf8 {[%clk 0:00:39.5]} 43. Ke3
{[%clk 0:00:25.2]} 43... Ke7 {[%clk 0:00:39.5]} 44. Kd4 {[%clk 0:00:26.3]} 44...
Ke6 {[%clk 0:00:38.2]} 45. f4 {[%clk 0:00:26.3]} 45... Rd5+ {[%clk 0:00:38.1]}
46. Kc3 {[%clk 0:00:26.9]} 46... Rd1 {[%clk 0:00:34.7]} 47. Rxa4 {[%clk
0:00:27.7]} 47... Rh1 {[%clk 0:00:35.7]} 48. Rc4 {[%clk 0:00:27.7]} 48... Kd5
{[%clk 0:00:35.4]} 49. Rd4+ {[%clk 0:00:20.5]} 49... Kc5 {[%clk 0:00:36.2]} 50.
Rd7 {[%clk 0:00:15.8]} 50... Rxh4 {[%clk 0:00:33.5]} 51. Rxf7 {[%clk 0:00:14.6]}
51... Rxf4 {[%clk 0:00:34.3]} 52. Rf6 {[%clk 0:00:14.9]} 52... Rf3+ {[%clk
0:00:34.2]} 53. Kb2 {[%clk 0:00:15.8]} 53... Kc4 {[%clk 0:00:34.1]} 54. Rc6+
{[%clk 0:00:16]} 54... Kd4 {[%clk 0:00:26.3]} 55. Rxg6 {[%clk 0:00:17.9]} 55...
Rg3 {[%clk 0:00:27.3]} 56. a4 {[%clk 0:00:17.9]} 56... f4 {[%clk 0:00:23.3]} 57.
a5 {[%clk 0:00:17.4]} 57... f3 {[%clk 0:00:24.5]} 58. a6 {[%clk 0:00:14.5]}
58... f2 {[%clk 0:00:19.1]} 59. Rf6 {[%clk 0:00:14.8]} 59... Rxg5 {[%clk
0:00:19.9]} 60. Rxf2 {[%clk 0:00:16.1]} 60... Ra5 {[%clk 0:00:20.9]} 61. Rf6
{[%clk 0:00:17.2]} 61... Kc5 {[%clk 0:00:21.6]} 62. Rf5+ {[%clk 0:00:18]} 62...
Kb6 {[%clk 0:00:22.8]} 63. Rxa5 {[%clk 0:00:19.9]} 1-0

[Event "*** Titled Tuesday 3|2 Blitz"]
[Site "Chess.com"]
[Date "2015.11.03"]
[Round "5"]
[White "VovAn1991"]
[Black "AlexanderL"]
[Result "0-1"]
[WhiteElo "2478"]
[BlackElo "2557"]
[TimeControl "180+2"]
[EndTime "12:02:59 PST"]
[Termination "AlexanderL won on time"]

1. e4 {[%clk 0:03:01.9]} 1... e6 {[%clk 0:03:01]} 2. d4 {[%clk 0:03:02.7]} 2...
d5 {[%clk 0:03:02.1]} 3. Nd2 {[%clk 0:03:03.8]} 3... c5 {[%clk 0:03:03.2]} 4.
exd5 {[%clk 0:03:02.8]} 4... Qxd5 {[%clk 0:03:01.7]} 5. dxc5 {[%clk 0:03:00.4]}
5... Bxc5 {[%clk 0:03:01.5]} 6. Ngf3 {[%clk 0:03:01.2]} 6... Nf6 {[%clk
0:03:01.9]} 7. Bc4 {[%clk 0:02:56.2]} 7... Qc6 {[%clk 0:03:01.5]} 8. O-O {[%clk
0:02:53]} 8... O-O {[%clk 0:03:02.4]} 9. a3 {[%clk 0:02:51.7]} 9... Be7 {[%clk
0:03:01.8]} 10. Qe2 {[%clk 0:02:52.2]} 10... b6 {[%clk 0:03:01.1]} 11. Ne5
{[%clk 0:02:45.7]} 11... Qc7 {[%clk 0:03:01.7]} 12. Ndf3 {[%clk 0:02:41.4]}
12... Nc6 {[%clk 0:02:44]} 13. Bf4 {[%clk 0:02:30.4]} 13... Bd6 {[%clk
0:02:39.2]} 14. Bb5 {[%clk 0:01:46.9]} 14... Nxe5 {[%clk 0:02:35.1]} 15. Bxe5
{[%clk 0:01:45]} 15... Bxe5 {[%clk 0:02:34.3]} 16. Qxe5 {[%clk 0:01:42.3]} 16...
Qxe5 {[%clk 0:02:29.3]} 17. Nxe5 {[%clk 0:01:44.2]} 17... Bb7 {[%clk 0:02:30.6]}
18. Rfd1 {[%clk 0:01:42.6]} 18... Rfd8 {[%clk 0:02:31.3]} 19. Bc6 {[%clk
0:01:41.6]} 19... Bxc6 {[%clk 0:02:28.5]} 20. Nxc6 {[%clk 0:01:43.5]} 20...
Rxd1+ {[%clk 0:02:29.1]} 21. Rxd1 {[%clk 0:01:45.2]} 21... Kf8 {[%clk
0:02:30.2]} 22. c4 {[%clk 0:01:37.7]} 22... Rc8 {[%clk 0:02:14.9]} 23. Ne5
{[%clk 0:01:04.8]} 23... Ke7 {[%clk 0:02:08.3]} 24. f3 {[%clk 0:01:05]} 24...
Rc7 {[%clk 0:02:05.2]} 25. Kf2 {[%clk 0:01:05.3]} 25... Ne8 {[%clk 0:02:06.3]}
26. b3 {[%clk 0:01:05]} 26... Nd6 {[%clk 0:02:06.8]} 27. Ke2 {[%clk 0:01:03.2]}
27... a5 {[%clk 0:02:05.7]} 28. Rc1 {[%clk 0:00:58.7]} 28... a4 {[%clk
0:02:02.6]} 29. b4 {[%clk 0:00:50.4]} 29... f6 {[%clk 0:02:02.9]} 30. c5 {[%clk
0:00:47.9]} 30... bxc5 {[%clk 0:01:45.6]} 31. bxc5 {[%clk 0:00:49.8]} 31... Nb5
{[%clk 0:01:19.8]} 32. Nd3 {[%clk 0:00:46]} 32... Nxa3 {[%clk 0:01:20.5]} 33.
Ra1 {[%clk 0:00:43.5]} 33... Nb5 {[%clk 0:01:21.6]} 34. Kd2 {[%clk 0:00:40.1]}
34... a3 {[%clk 0:01:22.3]} 35. Kc2 {[%clk 0:00:41.4]} 35... Ra7 {[%clk
0:01:20.2]} 36. Kb3 {[%clk 0:00:42.1]} 36... Kd7 {[%clk 0:01:15.3]} 37. Kc4
{[%clk 0:00:40.9]} 37... Nc7 {[%clk 0:01:11.4]} 38. Kb3 {[%clk 0:00:41]} 38...
Kc6 {[%clk 0:01:03.2]} 39. Rxa3 {[%clk 0:00:38.9]} 39... Rxa3+ {[%clk
0:01:03.7]} 40. Kxa3 {[%clk 0:00:40.8]} 40... Kb5 {[%clk 0:01:03.7]} 41. Kb3
{[%clk 0:00:41.4]} 41... Na6 {[%clk 0:01:03.7]} 42. Kc3 {[%clk 0:00:39]} 42...
Nxc5 {[%clk 0:01:04.2]} 43. Nf4 {[%clk 0:00:40.7]} 43... g6 {[%clk 0:01:03.6]}
44. Ne2 {[%clk 0:00:34.6]} 44... e5 {[%clk 0:00:58.2]} 45. g3 {[%clk 0:00:28.2]}
45... Ne6 {[%clk 0:00:56.4]} 46. Kd3 {[%clk 0:00:28.7]} 46... Kc5 {[%clk
0:00:52.6]} 47. Nc3 {[%clk 0:00:27.7]} 47... f5 {[%clk 0:00:53.4]} 48. Ke3
{[%clk 0:00:27.9]} 48... Nc7 {[%clk 0:00:52.3]} 49. Kd3 {[%clk 0:00:25.6]} 49...
Nd5 {[%clk 0:00:53.3]} 50. Ne2 {[%clk 0:00:26.9]} 50... Nb4+ {[%clk 0:00:53]}
51. Ke3 {[%clk 0:00:22.8]} 51... Kc4 {[%clk 0:00:53.9]} 52. Ng1 {[%clk
0:00:10.7]} 52... Nd5+ {[%clk 0:00:53.1]} 53. Kf2 {[%clk 0:00:10.1]} 53... Nc3
{[%clk 0:00:53.4]} 54. Ke3 {[%clk 0:00:10.8]} 54... Nd5+ {[%clk 0:00:54.1]} 55.
Kd2 {[%clk 0:00:11.9]} 55... e4 {[%clk 0:00:53.2]} 56. fxe4 {[%clk 0:00:13.8]}
56... fxe4 {[%clk 0:00:54.5]} 57. Nh3 {[%clk 0:00:13.5]} 57... h6 {[%clk
0:00:53.1]} 58. Ke2 {[%clk 0:00:13.8]} 58... Kd4 {[%clk 0:00:53.8]} 59. Nf2
{[%clk 0:00:13.5]} 59... Nc3+ {[%clk 0:00:53.7]} 60. Ke1 {[%clk 0:00:14.8]}
60... e3 {[%clk 0:00:51.2]} 61. Ng4 {[%clk 0:00:15.9]} 61... h5 {[%clk
0:00:52.2]} 62. Nf6 {[%clk 0:00:16.3]} 62... Kd3 {[%clk 0:00:43.2]} 63. Nd7
{[%clk 0:00:16.4]} 63... Ke4 {[%clk 0:00:43]} 64. h4 {[%clk 0:00:15.6]} 64...
Kf5 {[%clk 0:00:38.6]} 65. Nf8 {[%clk 0:00:11.3]} 65... Kg4 {[%clk 0:00:24.2]}
66. Nxg6 {[%clk 0:00:11.6]} 66... Kxg3 {[%clk 0:00:25.4]} 67. Kf1 {[%clk
0:00:12.5]} 67... Nd5 {[%clk 0:00:23.2]} 68. Ke1 {[%clk 0:00:04.4]} 68... Nf4
{[%clk 0:00:23.3]} 0-1

[Event "*** Titled Tuesday 3|2 Blitz"]
[Site "Chess.com"]
[Date "2015.11.03"]
[Round "5"]
[White "saraswathii"]
[Black "DeviatkinAndrey"]
[Result "0-1"]
[WhiteElo "1923"]
[BlackElo "2476"]
[TimeControl "180+2"]
[EndTime "12:03:20 PST"]
[Termination "DeviatkinAndrey won by resignation"]

1. e4 {[%clk 0:02:55.8]} 1... a5 {[%clk 0:03:00.7]} 2. d3 {[%clk 0:02:55.6]}
2... a4 {[%clk 0:03:01.8]} 3. a3 {[%clk 0:02:53.3]} 3... d5 {[%clk 0:03:01.5]}
4. Nd2 {[%clk 0:02:49.1]} 4... c6 {[%clk 0:03:01.4]} 5. Ngf3 {[%clk 0:02:47.2]}
5... Bg4 {[%clk 0:03:00.9]} 6. h3 {[%clk 0:02:26.9]} 6... Bh5 {[%clk 0:03:01.3]}
7. g3 {[%clk 0:02:26.7]} 7... e6 {[%clk 0:03:01]} 8. Bg2 {[%clk 0:02:26.4]} 8...
Nd7 {[%clk 0:03:01.5]} 9. O-O {[%clk 0:02:25.9]} 9... Bd6 {[%clk 0:03:01.8]} 10.
Re1 {[%clk 0:02:13.5]} 10... Ne7 {[%clk 0:03:01.9]} 11. c3 {[%clk 0:02:05.1]}
11... O-O {[%clk 0:03:01.4]} 12. d4 {[%clk 0:02:05.3]} 12... h6 {[%clk
0:02:57.9]} 13. e5 {[%clk 0:02:02.7]} 13... Bc7 {[%clk 0:02:58.5]} 14. Nf1
{[%clk 0:02:03.6]} 14... c5 {[%clk 0:02:58.6]} 15. g4 {[%clk 0:01:53.2]} 15...
Bg6 {[%clk 0:02:59.1]} 16. Ng3 {[%clk 0:01:52.7]} 16... b5 {[%clk 0:02:58.8]}
17. g5 {[%clk 0:01:45.3]} 17... hxg5 {[%clk 0:02:41.9]} 18. Nxg5 {[%clk
0:01:34.5]} 18... cxd4 {[%clk 0:02:25.5]} 19. cxd4 {[%clk 0:01:32.6]} 19... Re8
{[%clk 0:01:16.8]} 20. Qg4 {[%clk 0:01:22.1]} 20... Nf8 {[%clk 0:01:14.2]} 21.
h4 {[%clk 0:00:51.9]} 21... Bf5 {[%clk 0:01:06.5]} 22. Qh5 {[%clk 0:00:40.1]}
22... Bg6 {[%clk 0:01:00]} 23. Qf3 {[%clk 0:00:36.9]} 23... Nh7 {[%clk
0:00:45.2]} 24. h5 {[%clk 0:00:27.8]} 24... Bf5 {[%clk 0:00:46.3]} 25. h6 {[%clk
0:00:20.4]} 25... g6 {[%clk 0:00:37.8]} 26. Nxh7 {[%clk 0:00:17.7]} 26... Kxh7
{[%clk 0:00:39]} 27. Bg5 {[%clk 0:00:19.2]} 27... Qd7 {[%clk 0:00:39.3]} 28. Qf4
{[%clk 0:00:18.9]} 28... Ng8 {[%clk 0:00:23]} 29. Nxf5 {[%clk 0:00:19]} 29...
exf5 {[%clk 0:00:23.8]} 30. Rac1 {[%clk 0:00:18.7]} 30... Bd8 {[%clk 0:00:24.7]}
31. Rc5 {[%clk 0:00:17.6]} 31... Bxg5 {[%clk 0:00:24.9]} 32. Qxg5 {[%clk
0:00:19.5]} 32... Qe7 {[%clk 0:00:21]} 33. Qf4 {[%clk 0:00:17]} 33... Nxh6
{[%clk 0:00:19.1]} 34. Rxd5 {[%clk 0:00:16.2]} 34... Rad8 {[%clk 0:00:19.6]} 35.
Rc5 {[%clk 0:00:16.7]} 35... Kg7 {[%clk 0:00:17.2]} 36. d5 {[%clk 0:00:16.2]}
36... Ng4 {[%clk 0:00:18.3]} 37. Rxb5 {[%clk 0:00:13.4]} 37... Nxe5 {[%clk
0:00:12.8]} 38. Kf1 {[%clk 0:00:13.7]} 38... Qd6 {[%clk 0:00:13.8]} 39. Qd4
{[%clk 0:00:14.3]} 39... f6 {[%clk 0:00:12.8]} 40. Rb7+ {[%clk 0:00:15.1]} 40...
Rd7 {[%clk 0:00:13.7]} 41. Rxd7+ {[%clk 0:00:15.9]} 41... Qxd7 {[%clk 0:00:15]}
42. f4 {[%clk 0:00:16.9]} 42... Nf7 {[%clk 0:00:14.9]} 43. Rxe8 {[%clk
0:00:17.5]} 43... Qxe8 {[%clk 0:00:16.1]} 44. Kf2 {[%clk 0:00:18.7]} 44... Nd6
{[%clk 0:00:15.5]} 45. Bf3 {[%clk 0:00:18.4]} 45... Qe7 {[%clk 0:00:15.7]} 46.
Qb4 {[%clk 0:00:18]} 46... Qd7 {[%clk 0:00:14.5]} 47. Qc5 {[%clk 0:00:18]} 47...
g5 {[%clk 0:00:15.5]} 48. fxg5 {[%clk 0:00:18.4]} 48... fxg5 {[%clk 0:00:16.8]}
49. Qd4+ {[%clk 0:00:17.2]} 49... Kh7 {[%clk 0:00:11.3]} 50. Bh5 {[%clk
0:00:16]} 50... Ne4+ {[%clk 0:00:11]} 51. Ke3 {[%clk 0:00:15.6]} 51... Qd6
{[%clk 0:00:11]} 52. Bf3 {[%clk 0:00:12.8]} 52... Qf4+ {[%clk 0:00:10.9]} 53.
Ke2 {[%clk 0:00:13.6]} 53... Ng3+ {[%clk 0:00:12.1]} 54. Kd3 {[%clk 0:00:14.4]}
54... Qxf3+ {[%clk 0:00:13.4]} 55. Kc4 {[%clk 0:00:15.5]} 55... Qb3+ {[%clk
0:00:10.2]} 56. Kc5 {[%clk 0:00:16.1]} 56... Ne4+ {[%clk 0:00:10.4]} 57. Kc6
{[%clk 0:00:14.7]} 57... Qb8 {[%clk 0:00:11.5]} 58. Kd7 {[%clk 0:00:05.5]} 58...
Qd6+ {[%clk 0:00:11.7]} 59. Kc8 {[%clk 0:00:05.1]} 59... Nf6 {[%clk 0:00:11.6]}
60. Qa7+ {[%clk 0:00:05.7]} 60... Kg6 {[%clk 0:00:12.2]} 61. Qxa4 {[%clk
0:00:06.1]} 61... g4 {[%clk 0:00:12.8]} 62. Qc6 {[%clk 0:00:05.4]} 62... Qxd5
{[%clk 0:00:12.2]} 63. Qxd5 {[%clk 0:00:05.8]} 63... Nxd5 {[%clk 0:00:13]} 0-1